Workbook

Sheet Index
B4: RTC Module Battery backup time Simulator Sheet Index 2024 Mar.
C7: Sheet name | D7: Description
C9: EDLC_Capacitor | D9: Backup time is calculated when EDLC / Capacitor is used.
C11: Coin cell | D11: Backup time is calculated when Coin Cell is used.
C13: EPSON-RTC-List | D13: EPSON RTC module Backup-current list.
C15: Ohm's Law | D15: Please use it for calculating minute currents, etc.

Sheet EDLC_Capacitor
C3: Rev.4 OUT-23-1726 Copyright ©2024 Seiko Epson Corp. All right reserved. | F3: RTC MODULE BACKUP TIME SIMULATOR For EDLC / Capacitor
G4: After entering the values in all yellow cells, press the Graph Drawing button. (The VBAT Low detect(V) and minimum clock(V) values are only displayed on the graph and do not affect the calculation.
E6: Typ. | F6: Worst
D7: Fully charged voltage(V) | E7: 3.3 | F7: 2.7 | I7: Input step 1
D8: RTC backup current (mA) | E8: 0.1 | F8: 0.2 | I8: Input step 2
D9: EDLC / Capacitance value (F) | E9: 10 | F9: 0.47 | I9: Input step 3
C11: Sec | D11: Days | E11: Start (V) | G11: VBAT Low detect (V) | H11: Minimum clock (V)
C12: 0 | D12: =C12/24 -> 0 | E12: =$E$7-$C12*$E$8*0.00000001/$E$9 -> 3.3 | F12: =$F$7-$C12*$F$8*0.000001/F$9 -> 2.7 | G12: 1.5 | H12: 0.9 | I12: Input step 4
H13: X-axis maximum (Days) | I13: The max. value is 7,300
H14: 4500 | I14: Input step 5
A17: 1 | C17: 86400 | D17: =C17/86400 -> 1 | E17: =$E$7-$C17*$E$8*0.000001/$E$9 -> 3.299136 | F17: =$F$7-$C17*$F$8*0.000001/$F$9 -> 2.663234043 | G17: =G12 -> 1.5 | H17: =H12 -> 0.9
A18: 2 | C18: =C17+86400 -> 172800 | D18: =C18/86400 -> 2 | E18: =$E$7-$C18*$E$8*0.000001/$E$9 -> 3.298272 | F18: 2.626468085 | G18: =G17 -> 1.5 | H18: =H17 -> 0.9
A19: 3 | C19: =C18+86400 -> 259200 | D19: =C19/86400 -> 3 | E19: 3.297408 | F19: 2.589702128 | G19: 1.5 | H19: 0.9
A20: 4 | C20: 345600 | D20: 4 | E20: 3.296544 | F20: 2.55293617 | G20: 1.5 | H20: 0.9
A21: 5 | C21: 432000 | D21: 5 | E21: 3.29568 | F21: 2.516170213 | G21: 1.5 | H21: 0.9
A22: 6 | C22: 518400 | D22: 6 | E22: 3.294816 | F22: 2.479404255 | G22: 1.5 | H22: 0.9
A23: 7 | C23: 604800 | D23: 7 | E23: 3.293952 | F23: 2.442638298 | G23: 1.5 | H23: 0.9
A24: 8 | C24: 691200 | D24: 8 | E24: 3.293088 | F24: 2.40587234 | G24: 1.5 | H24: 0.9
A25: 9 | C25: 777600 | D25: 9 | E25: 3.292224 | F25: 2.369106383 | G25: 1.5 | H25: 0.9
A26: 10 | C26: 864000 | D26: 10 | E26: 3.29136 | F26: 2.332340426 | G26: 1.5 | H26: 0.9
A27: 11 | C27: 950400 | D27: 11 | E27: 3.290496 | F27: 2.295574468 | G27: 1.5 | H27: 0.9
A28: 12 | C28: 1036800 | D28: 12 | E28: 3.289632 | F28: 2.258808511 | G28: 1.5 | H28: 0.9
A29: 13 | C29: 1123200 | D29: 13 | E29: 3.288768 | F29: 2.222042553 | G29: 1.5 | H29: 0.9
A30: 14 | C30: 1209600 | D30: 14 | E30: 3.287904 | F30: 2.185276596 | G30: 1.5 | H30: 0.9
A31: 15 | C31: 1296000 | D31: 15 | E31: 3.28704 | F31: 2.148510638 | G31: 1.5 | H31: 0.9
A32: 16 | C32: 1382400 | D32: 16 | E32: 3.286176 | F32: 2.111744681 | G32: 1.5 | H32: 0.9
A33: 17 | C33: 1468800 | D33: 17 | E33: 3.285312 | F33: 2.074978723 | G33: 1.5 | H33: 0.9
A34: 18 | C34: 1555200 | D34: 18 | E34: 3.284448 | F34: 2.038212766 | G34: 1.5 | H34: 0.9
A35: 19 | C35: 1641600 | D35: 19 | E35: 3.283584 | F35: 2.001446809 | G35: 1.5 | H35: 0.9
A36: 20 | C36: 1728000 | D36: 20 | E36: 3.28272 | F36: =$F$7-($C36*$F$8*0.000001/$F$9) -> 1.964680851 | G36: 1.5 | H36: 0.9
A37: 21 | C37: 1814400 | D37: 21 | E37: 3.281856 | F37: 1.927914894 | G37: 1.5 | H37: 0.9
A38: 22 | C38: 1900800 | D38: 22 | E38: 3.280992 | F38: 1.891148936 | G38: 1.5 | H38: 0.9
A39: 23 | C39: 1987200 | D39: 23 | E39: 3.280128 | F39: 1.854382979 | G39: 1.5 | H39: 0.9
A40: 24 | C40: 2073600 | D40: 24 | E40: 3.279264 | F40: 1.817617021 | G40: 1.5 | H40: 0.9
A41: 25 | C41: 2160000 | D41: 25 | E41: 3.2784 | F41: 1.780851064 | G41: 1.5 | H41: 0.9
A42: 26 | C42: 2246400 | D42: 26 | E42: 3.277536 | F42: 1.744085106 | G42: 1.5 | H42: 0.9
A43: 27 | C43: 2332800 | D43: 27 | E43: 3.276672 | F43: 1.707319149 | G43: 1.5 | H43: 0.9
A44: 28 | C44: 2419200 | D44: 28 | E44: 3.275808 | F44: 1.670553191 | G44: 1.5 | H44: 0.9
A45: 29 | C45: 2505600 | D45: 29 | E45: 3.274944 | F45: 1.633787234 | G45: 1.5 | H45: 0.9
A46: 30 | C46: 2592000 | D46: 30 | E46: 3.27408 | F46: 1.597021277 | G46: 1.5 | H46: 0.9
A47: 31 | C47: 2678400 | D47: 31 | E47: 3.273216 | F47: 1.560255319 | G47: 1.5 | H47: 0.9
A48: 32 | C48: 2764800 | D48: 32 | E48: 3.272352 | F48: 1.523489362 | G48: 1.5 | H48: 0.9
A49: 33 | C49: 2851200 | D49: 33 | E49: 3.271488 | F49: 1.486723404 | G49: 1.5 | H49: 0.9
A50: 34 | C50: 2937600 | D50: 34 | E50: 3.270624 | F50: 1.449957447 | G50: 1.5 | H50: 0.9
A51: 35 | C51: 3024000 | D51: 35 | E51: 3.26976 | F51: 1.413191489 | G51: 1.5 | H51: 0.9
A52: 36 | C52: =C51+86400 -> 3110400 | D52: 36 | E52: 3.268896 | F52: 1.376425532 | G52: 1.5 | H52: 0.9
A53: 37 | C53: 3196800 | D53: 37 | E53: 3.268032 | F53: 1.339659574 | G53: 1.5 | H53: 0.9
A54: 38 | C54: 3283200 | D54: 38 | E54: 3.267168 | F54: 1.302893617 | G54: 1.5 | H54: 0.9
A55: 39 | C55: 3369600 | D55: 39 | E55: 3.266304 | F55: 1.26612766 | G55: 1.5 | H55: 0.9
A56: 40 | C56: 3456000 | D56: 40 | E56: 3.26544 | F56: 1.229361702 | G56: 1.5 | H56: 0.9
A57: 41 | C57: 3542400 | D57: 41 | E57: 3.264576 | F57: 1.192595745 | G57: 1.5 | H57: 0.9
A58: 42 | C58: 3628800 | D58: 42 | E58: 3.263712 | F58: 1.155829787 | G58: 1.5 | H58: 0.9
A59: 43 | C59: 3715200 | D59: 43 | E59: 3.262848 | F59: 1.11906383 | G59: 1.5 | H59: 0.9
A60: 44 | C60: 3801600 | D60: 44 | E60: 3.261984 | F60: 1.082297872 | G60: 1.5 | H60: 0.9
A61: 45 | C61: 3888000 | D61: 45 | E61: 3.26112 | F61: 1.045531915 | G61: 1.5 | H61: 0.9
A62: 46 | C62: 3974400 | D62: 46 | E62: 3.260256 | F62: 1.008765957 | G62: 1.5 | H62: 0.9
A63: 47 | C63: 4060800 | D63: 47 | E63: 3.259392 | F63: 0.972 | G63: 1.5 | H63: 0.9
A64: 48 | C64: 4147200 | D64: 48 | E64: 3.258528 | F64: 0.9352340426 | G64: 1.5 | H64: 0.9
A65: 49 | C65: 4233600 | D65: 49 | E65: 3.257664 | F65: 0.8984680851 | G65: 1.5 | H65: 0.9
A66: 50 | C66: 4320000 | D66: 50 | E66: 3.2568 | F66: 0.8617021277 | G66: 1.5 | H66: 0.9
A67: 51 | C67: 4406400 | D67: 51 | E67: 3.255936 | F67: 0.8249361702 | G67: 1.5 | H67: 0.9
A68: 52 | C68: 4492800 | D68: 52 | E68: 3.255072 | F68: 0.7881702128 | G68: 1.5 | H68: 0.9
A69: 53 | C69: 4579200 | D69: 53 | E69: 3.254208 | F69: 0.7514042553 | G69: 1.5 | H69: 0.9
A70: 54 | C70: 4665600 | D70: 54 | E70: 3.253344 | F70: 0.7146382979 | G70: 1.5 | H70: 0.9
A71: 55 | C71: 4752000 | D71: 55 | E71: 3.25248 | F71: 0.6778723404 | G71: 1.5 | H71: 0.9
A72: 56 | C72: 4838400 | D72: 56 | E72: 3.251616 | F72: 0.641106383 | G72: 1.5 | H72: 0.9
A73: 57 | C73: 4924800 | D73: 57 | E73: 3.250752 | F73: 0.6043404255 | G73: 1.5 | H73: 0.9
A74: 58 | C74: 5011200 | D74: 58 | E74: 3.249888 | F74: 0.5675744681 | G74: 1.5 | H74: 0.9
A75: 59 | C75: 5097600 | D75: 59 | E75: 3.249024 | F75: 0.5308085106 | G75: 1.5 | H75: 0.9
A76: 60 | C76: 5184000 | D76: 60 | E76: 3.24816 | F76: 0.4940425532 | G76: 1.5 | H76: 0.9
A77: 61 | C77: 5270400 | D77: 61 | E77: 3.247296 | F77: 0.4572765957 | G77: 1.5 | H77: 0.9
A78: 62 | C78: 5356800 | D78: 62 | E78: 3.246432 | F78: 0.4205106383 | G78: 1.5 | H78: 0.9
A79: 63 | C79: 5443200 | D79: 63 | E79: 3.245568 | F79: 0.3837446809 | G79: 1.5 | H79: 0.9
A80: 64 | C80: 5529600 | D80: 64 | E80: 3.244704 | F80: 0.3469787234 | G80: 1.5 | H80: 0.9
A81: 65 | C81: 5616000 | D81: 65 | E81: 3.24384 | F81: =$F$7-$C81*$F$8*0.000001/$F$9 -> 0.310212766 | G81: 1.5 | H81: 0.9
A82: 66 | C82: 5702400 | D82: 66 | E82: =$E$7-$C82*$E$8*0.000001/$E$9 -> 3.242976 | F82: 0.2734468085 | G82: =G81 -> 1.5 | H82: =H81 -> 0.9
A83: 67 | C83: 5788800 | D83: =C83/86400 -> 67 | E83: 3.242112 | F83: 0.2366808511 | G83: 1.5 | H83: 0.9
A84: 68 | C84: 5875200 | D84: 68 | E84: 3.241248 | F84: 0.1999148936 | G84: 1.5 | H84: 0.9
A85: 69 | C85: 5961600 | D85: 69 | E85: 3.240384 | F85: 0.1631489362 | G85: 1.5 | H85: 0.9
A86: 70 | C86: 6048000 | D86: 70 | E86: 3.23952 | F86: 0.1263829787 | G86: 1.5 | H86: 0.9
A87: 71 | C87: 6134400 | D87: 71 | E87: 3.238656 | F87: 0.08961702128 | G87: 1.5 | H87: 0.9
A88: 72 | C88: 6220800 | D88: 72 | E88: 3.237792 | F88: 0.05285106383 | G88: 1.5 | H88: 0.9
A89: 73 | C89: 6307200 | D89: 73 | E89: 3.236928 | F89: 0.01608510638 | G89: 1.5 | H89: 0.9
A90: 74 | C90: 6393600 | D90: 74 | E90: 3.236064 | F90: -0.02068085106 | G90: 1.5 | H90: 0.9
A91: 75 | C91: 6480000 | D91: 75 | E91: 3.2352 | F91: -0.05744680851 | G91: 1.5 | H91: 0.9
A92: 76 | C92: 6566400 | D92: 76 | E92: 3.234336 | F92: -0.09421276596 | G92: 1.5 | H92: 0.9
A93: 77 | C93: 6652800 | D93: 77 | E93: 3.233472 | F93: -0.1309787234 | G93: 1.5 | H93: 0.9
A94: 78 | C94: 6739200 | D94: 78 | E94: 3.232608 | F94: -0.1677446809 | G94: 1.5 | H94: 0.9
A95: 79 | C95: 6825600 | D95: 79 | E95: 3.231744 | F95: -0.2045106383 | G95: 1.5 | H95: 0.9
A96: 80 | C96: 6912000 | D96: 80 | E96: 3.23088 | F96: -0.2412765957 | G96: 1.5 | H96: 0.9
A97: 81 | C97: 6998400 | D97: 81 | E97: 3.230016 | F97: -0.2780425532 | G97: 1.5 | H97: 0.9
A98: 82 | C98: 7084800 | D98: 82 | E98: 3.229152 | F98: -0.3148085106 | G98: 1.5 | H98: 0.9
A99: 83 | C99: 7171200 | D99: 83 | E99: 3.228288 | F99: -0.3515744681 | G99: 1.5 | H99: 0.9
A100: 84 | C100: 7257600 | D100: 84 | E100: 3.227424 | F100: -0.3883404255 | G100: 1.5 | H100: 0.9
A101: 85 | C101: 7344000 | D101: 85 | E101: 3.22656 | F101: -0.425106383 | G101: 1.5 | H101: 0.9
A102: 86 | C102: 7430400 | D102: 86 | E102: 3.225696 | F102: -0.4618723404 | G102: 1.5 | H102: 0.9
A103: 87 | C103: 7516800 | D103: 87 | E103: 3.224832 | F103: -0.4986382979 | G103: 1.5 | H103: 0.9
A104: 88 | C104: 7603200 | D104: 88 | E104: 3.223968 | F104: -0.5354042553 | G104: 1.5 | H104: 0.9
A105: 89 | C105: 7689600 | D105: 89 | E105: 3.223104 | F105: -0.5721702128 | G105: 1.5 | H105: 0.9
A106: 90 | C106: 7776000 | D106: 90 | E106: 3.22224 | F106: -0.6089361702 | G106: 1.5 | H106: 0.9
A107: 91 | C107: 7862400 | D107: 91 | E107: 3.221376 | F107: -0.6457021277 | G107: 1.5 | H107: 0.9
A108: 92 | C108: 7948800 | D108: 92 | E108: 3.220512 | F108: -0.6824680851 | G108: 1.5 | H108: 0.9
A109: 93 | C109: 8035200 | D109: 93 | E109: 3.219648 | F109: -0.7192340426 | G109: 1.5 | H109: 0.9
A110: 94 | C110: 8121600 | D110: 94 | E110: 3.218784 | F110: -0.756 | G110: 1.5 | H110: 0.9
A111: 95 | C111: 8208000 | D111: 95 | E111: 3.21792 | F111: -0.7927659574 | G111: 1.5 | H111: 0.9
A112: 96 | C112: 8294400 | D112: 96 | E112: 3.217056 | F112: -0.8295319149 | G112: 1.5 | H112: 0.9
A113: 97 | C113: 8380800 | D113: 97 | E113: 3.216192 | F113: -0.8662978723 | G113: 1.5 | H113: 0.9
A114: 98 | C114: 8467200 | D114: 98 | E114: 3.215328 | F114: -0.9030638298 | G114: 1.5 | H114: 0.9
A115: 99 | C115: 8553600 | D115: 99 | E115: 3.214464 | F115: -0.9398297872 | G115: 1.5 | H115: 0.9
A116: 100 | C116: =C115+86400 -> 8640000 | D116: 100 | E116: 3.2136 | F116: -0.9765957447 | G116: 1.5 | H116: 0.9
A117: 101 | C117: 8726400 | D117: 101 | E117: 3.212736 | F117: -1.013361702 | G117: 1.5 | H117: 0.9
A118: 102 | C118: 8812800 | D118: 102 | E118: 3.211872 | F118: -1.05012766 | G118: 1.5 | H118: 0.9
A119: 103 | C119: 8899200 | D119: 103 | E119: 3.211008 | F119: -1.086893617 | G119: 1.5 | H119: 0.9
A120: 104 | C120: 8985600 | D120: 104 | E120: 3.210144 | F120: -1.123659574 | G120: 1.5 | H120: 0.9
A121: 105 | C121: 9072000 | D121: 105 | E121: 3.20928 | F121: -1.160425532 | G121: 1.5 | H121: 0.9
A122: 106 | C122: 9158400 | D122: 106 | E122: 3.208416 | F122: -1.197191489 | G122: 1.5 | H122: 0.9
A123: 107 | C123: 9244800 | D123: 107 | E123: 3.207552 | F123: -1.233957447 | G123: 1.5 | H123: 0.9
A124: 108 | C124: 9331200 | D124: 108 | E124: 3.206688 | F124: -1.270723404 | G124: 1.5 | H124: 0.9
A125: 109 | C125: 9417600 | D125: 109 | E125: 3.205824 | F125: -1.307489362 | G125: 1.5 | H125: 0.9
A126: 110 | C126: 9504000 | D126: 110 | E126: 3.20496 | F126: -1.344255319 | G126: 1.5 | H126: 0.9
A127: 111 | C127: 9590400 | D127: 111 | E127: 3.204096 | F127: -1.381021277 | G127: 1.5 | H127: 0.9
A128: 112 | C128: 9676800 | D128: 112 | E128: 3.203232 | F128: -1.417787234 | G128: 1.5 | H128: 0.9
A129: 113 | C129: 9763200 | D129: 113 | E129: 3.202368 | F129: -1.454553191 | G129: 1.5 | H129: 0.9
A130: 114 | C130: 9849600 | D130: 114 | E130: 3.201504 | F130: -1.491319149 | G130: 1.5 | H130: 0.9
A131: 115 | C131: 9936000 | D131: 115 | E131: 3.20064 | F131: -1.528085106 | G131: 1.5 | H131: 0.9
A132: 116 | C132: 10022400 | D132: 116 | E132: 3.199776 | F132: -1.564851064 | G132: 1.5 | H132: 0.9
A133: 117 | C133: 10108800 | D133: 117 | E133: 3.198912 | F133: -1.601617021 | G133: 1.5 | H133: 0.9
A134: 118 | C134: 10195200 | D134: 118 | E134: 3.198048 | F134: -1.638382979 | G134: 1.5 | H134: 0.9
A135: 119 | C135: 10281600 | D135: 119 | E135: 3.197184 | F135: -1.675148936 | G135: 1.5 | H135: 0.9
A136: 120 | C136: 10368000 | D136: 120 | E136: 3.19632 | F136: -1.711914894 | G136: 1.5 | H136: 0.9
A137: 121 | C137: 10454400 | D137: 121 | E137: 3.195456 | F137: -1.748680851 | G137: 1.5 | H137: 0.9
A138: 122 | C138: 10540800 | D138: 122 | E138: 3.194592 | F138: -1.785446809 | G138: 1.5 | H138: 0.9
A139: 123 | C139: 10627200 | D139: 123 | E139: 3.193728 | F139: -1.822212766 | G139: 1.5 | H139: 0.9
A140: 124 | C140: 10713600 | D140: 124 | E140: 3.192864 | F140: -1.858978723 | G140: 1.5 | H140: 0.9
A141: 125 | C141: 10800000 | D141: 125 | E141: 3.192 | F141: -1.895744681 | G141: 1.5 | H141: 0.9
A142: 126 | C142: 10886400 | D142: 126 | E142: 3.191136 | F142: -1.932510638 | G142: 1.5 | H142: 0.9
A143: 127 | C143: 10972800 | D143: 127 | E143: 3.190272 | F143: -1.969276596 | G143: 1.5 | H143: 0.9
A144: 128 | C144: 11059200 | D144: 128 | E144: 3.189408 | F144: -2.006042553 | G144: 1.5 | H144: 0.9
A145: 129 | C145: 11145600 | D145: 129 | E145: 3.188544 | F145: =$F$7-$C145*$F$8*0.000001/$F$9 -> -2.042808511 | G145: 1.5 | H145: 0.9
A146: 130 | C146: 11232000 | D146: 130 | E146: =$E$7-$C146*$E$8*0.000001/$E$9 -> 3.18768 | F146: -2.079574468 | G146: =G145 -> 1.5 | H146: =H145 -> 0.9
A147: 131 | C147: 11318400 | D147: =C147/86400 -> 131 | E147: 3.186816 | F147: -2.116340426 | G147: 1.5 | H147: 0.9
A148: 132 | C148: 11404800 | D148: 132 | E148: 3.185952 | F148: -2.153106383 | G148: 1.5 | H148: 0.9
A149: 133 | C149: 11491200 | D149: 133 | E149: 3.185088 | F149: -2.18987234 | G149: 1.5 | H149: 0.9
A150: 134 | C150: 11577600 | D150: 134 | E150: 3.184224 | F150: -2.226638298 | G150: 1.5 | H150: 0.9
A151: 135 | C151: 11664000 | D151: 135 | E151: 3.18336 | F151: -2.263404255 | G151: 1.5 | H151: 0.9
A152: 136 | C152: 11750400 | D152: 136 | E152: 3.182496 | F152: -2.300170213 | G152: 1.5 | H152: 0.9
A153: 137 | C153: 11836800 | D153: 137 | E153: 3.181632 | F153: -2.33693617 | G153: 1.5 | H153: 0.9
A154: 138 | C154: 11923200 | D154: 138 | E154: 3.180768 | F154: -2.373702128 | G154: 1.5 | H154: 0.9
A155: 139 | C155: 12009600 | D155: 139 | E155: 3.179904 | F155: -2.410468085 | G155: 1.5 | H155: 0.9
A156: 140 | C156: 12096000 | D156: 140 | E156: 3.17904 | F156: -2.447234043 | G156: 1.5 | H156: 0.9
A157: 141 | C157: 12182400 | D157: 141 | E157: 3.178176 | F157: -2.484 | G157: 1.5 | H157: 0.9
A158: 142 | C158: 12268800 | D158: 142 | E158: 3.177312 | F158: -2.520765957 | G158: 1.5 | H158: 0.9
A159: 143 | C159: 12355200 | D159: 143 | E159: 3.176448 | F159: -2.557531915 | G159: 1.5 | H159: 0.9
A160: 144 | C160: 12441600 | D160: 144 | E160: 3.175584 | F160: -2.594297872 | G160: 1.5 | H160: 0.9
A161: 145 | C161: 12528000 | D161: 145 | E161: 3.17472 | F161: -2.63106383 | G161: 1.5 | H161: 0.9
A162: 146 | C162: 12614400 | D162: 146 | E162: 3.173856 | F162: -2.667829787 | G162: 1.5 | H162: 0.9
A163: 147 | C163: 12700800 | D163: 147 | E163: 3.172992 | F163: -2.704595745 | G163: 1.5 | H163: 0.9
A164: 148 | C164: 12787200 | D164: 148 | E164: 3.172128 | F164: -2.741361702 | G164: 1.5 | H164: 0.9
A165: 149 | C165: 12873600 | D165: 149 | E165: 3.171264 | F165: -2.77812766 | G165: 1.5 | H165: 0.9
A166: 150 | C166: 12960000 | D166: 150 | E166: 3.1704 | F166: -2.814893617 | G166: 1.5 | H166: 0.9
A167: 151 | C167: 13046400 | D167: 151 | E167: 3.169536 | F167: -2.851659574 | G167: 1.5 | H167: 0.9
A168: 152 | C168: 13132800 | D168: 152 | E168: 3.168672 | F168: -2.888425532 | G168: 1.5 | H168: 0.9
A169: 153 | C169: 13219200 | D169: 153 | E169: 3.167808 | F169: -2.925191489 | G169: 1.5 | H169: 0.9
A170: 154 | C170: 13305600 | D170: 154 | E170: 3.166944 | F170: -2.961957447 | G170: 1.5 | H170: 0.9
A171: 155 | C171: 13392000 | D171: 155 | E171: 3.16608 | F171: -2.998723404 | G171: 1.5 | H171: 0.9
A172: 156 | C172: 13478400 | D172: 156 | E172: 3.165216 | F172: -3.035489362 | G172: 1.5 | H172: 0.9
A173: 157 | C173: 13564800 | D173: 157 | E173: 3.164352 | F173: -3.072255319 | G173: 1.5 | H173: 0.9
A174: 158 | C174: 13651200 | D174: 158 | E174: 3.163488 | F174: -3.109021277 | G174: 1.5 | H174: 0.9
A175: 159 | C175: 13737600 | D175: 159 | E175: 3.162624 | F175: -3.145787234 | G175: 1.5 | H175: 0.9
A176: 160 | C176: 13824000 | D176: 160 | E176: 3.16176 | F176: -3.182553191 | G176: 1.5 | H176: 0.9
A177: 161 | C177: 13910400 | D177: 161 | E177: 3.160896 | F177: -3.219319149 | G177: 1.5 | H177: 0.9
A178: 162 | C178: 13996800 | D178: 162 | E178: 3.160032 | F178: -3.256085106 | G178: 1.5 | H178: 0.9
A179: 163 | C179: 14083200 | D179: 163 | E179: 3.159168 | F179: -3.292851064 | G179: 1.5 | H179: 0.9
A180: 164 | C180: =C179+86400 -> 14169600 | D180: 164 | E180: 3.158304 | F180: -3.329617021 | G180: 1.5 | H180: 0.9
A181: 165 | C181: 14256000 | D181: 165 | E181: 3.15744 | F181: -3.366382979 | G181: 1.5 | H181: 0.9
A182: 166 | C182: 14342400 | D182: 166 | E182: 3.156576 | F182: -3.403148936 | G182: 1.5 | H182: 0.9
A183: 167 | C183: 14428800 | D183: 167 | E183: 3.155712 | F183: -3.439914894 | G183: 1.5 | H183: 0.9
A184: 168 | C184: 14515200 | D184: 168 | E184: 3.154848 | F184: -3.476680851 | G184: 1.5 | H184: 0.9
A185: 169 | C185: 14601600 | D185: 169 | E185: 3.153984 | F185: -3.513446809 | G185: 1.5 | H185: 0.9
A186: 170 | C186: 14688000 | D186: 170 | E186: 3.15312 | F186: -3.550212766 | G186: 1.5 | H186: 0.9
A187: 171 | C187: 14774400 | D187: 171 | E187: 3.152256 | F187: -3.586978723 | G187: 1.5 | H187: 0.9
A188: 172 | C188: 14860800 | D188: 172 | E188: 3.151392 | F188: -3.623744681 | G188: 1.5 | H188: 0.9
A189: 173 | C189: 14947200 | D189: 173 | E189: 3.150528 | F189: -3.660510638 | G189: 1.5 | H189: 0.9
A190: 174 | C190: 15033600 | D190: 174 | E190: 3.149664 | F190: -3.697276596 | G190: 1.5 | H190: 0.9
A191: 175 | C191: 15120000 | D191: 175 | E191: 3.1488 | F191: -3.734042553 | G191: 1.5 | H191: 0.9
A192: 176 | C192: 15206400 | D192: 176 | E192: 3.147936 | F192: -3.770808511 | G192: 1.5 | H192: 0.9
A193: 177 | C193: 15292800 | D193: 177 | E193: 3.147072 | F193: -3.807574468 | G193: 1.5 | H193: 0.9
A194: 178 | C194: 15379200 | D194: 178 | E194: 3.146208 | F194: -3.844340426 | G194: 1.5 | H194: 0.9
A195: 179 | C195: 15465600 | D195: 179 | E195: 3.145344 | F195: -3.881106383 | G195: 1.5 | H195: 0.9
A196: 180 | C196: 15552000 | D196: 180 | E196: 3.14448 | F196: =$F$7-$C196*$F$8*0.000001/$F$9 -> -3.91787234 | G196: 1.5 | H196: 0.9
A197: 181 | C197: 15638400 | D197: 181 | E197: 3.143616 | F197: -3.954638298 | G197: 1.5 | H197: 0.9
A198: 182 | C198: 15724800 | D198: 182 | E198: 3.142752 | F198: -3.991404255 | G198: 1.5 | H198: 0.9
A199: 183 | C199: 15811200 | D199: 183 | E199: 3.141888 | F199: -4.028170213 | G199: 1.5 | H199: 0.9
A200: 184 | C200: 15897600 | D200: 184 | E200: 3.141024 | F200: -4.06493617 | G200: 1.5 | H200: 0.9
A201: 185 | C201: 15984000 | D201: 185 | E201: 3.14016 | F201: -4.101702128 | G201: 1.5 | H201: 0.9
A202: 186 | C202: 16070400 | D202: 186 | E202: 3.139296 | F202: -4.138468085 | G202: 1.5 | H202: 0.9
A203: 187 | C203: 16156800 | D203: 187 | E203: 3.138432 | F203: -4.175234043 | G203: 1.5 | H203: 0.9
A204: 188 | C204: 16243200 | D204: 188 | E204: 3.137568 | F204: -4.212 | G204: 1.5 | H204: 0.9
A205: 189 | C205: 16329600 | D205: 189 | E205: 3.136704 | F205: -4.248765957 | G205: 1.5 | H205: 0.9
A206: 190 | C206: 16416000 | D206: 190 | E206: 3.13584 | F206: -4.285531915 | G206: 1.5 | H206: 0.9
... 7111 more rows

Sheet Coin cell
C2: For RTC Module An calculator of the keeping time of a clock data For Coin cell, or other battery
E4: Please input to Yellow cells only.
B5: Battery Spec. (mAh)
C6: 25 | E6: ¬Input Step 1
C7: =C6/1000 -> 0.025 | E7: =F9*0.000000001 -> 1e-07 | H7: Backup Time
C8: =C6/1000 -> 0.025 | E8: =F10*0.000000001 -> 4.5e-07 | F8: RTC backup current(nA) | H8: Hours | I8: Days | J8: Years
B9: Model | C9: Free input | D9: Typ. | E9: Input Step 2® | F9: 100 | G9: ® | H9: =H13 -> 250000 | I9: 10416.66667 | J9: 28.53881279
C10: Free input | D10: Max. | E10: Input Step 2® | F10: 450 | G10: ® | H10: =H15 -> 55555.55556 | I10: =I15 -> 2314.814815 | J10: =J15 -> 6.341958397
H11: The self discharge current of battery is ignored.
B12: Battery Spec. Reference value(mAh) | D12: Voltage
H13: =C7/E7 -> 250000 | I13: =H13/24 -> 10416.66667 | J13: =I13/365 -> 28.53881279
B14: CR1025 | C14: 30 | D14: 3.0V
B15: CR1220 | C15: 40 | H15: =C8/E8 -> 55555.55556 | I15: =H15/24 -> 2314.814815 | J15: =I15/365 -> 6.341958397
B16: CR1632 | C16: 140
B17: CR2016 | C17: 90
B18: CR2025 | C18: 160
B19: CR2032 | C19: 225
B20: 377 SR626SW | C20: 28 | D20: 1.15V
B21: 312A PR41 | C21: 180 | D21: 1.4V
B22: 191 LR1120 | C22: 25 | D22: 1.5V
B23: 192 LR41 | C23: 45
B24: 186 LR43 | C24: 110
B25: A76 LR44 | C25: 120

Sheet EPSON-RTC-List
B2: RTC Module Current consumption list Unit (nA) The voltage with a blank voltage condition is 3.0V. The manual for detailed specifications. The model of Gray color are discontinued model. 2024 Mar
C3: I2C | G3: 4 wire SPI | L3: 3 wire SPI | Q3: Parallel
C4: MODEL | D4: Typ | E4: MAX | G4: MODEL | H4: Typ | I4: MAX | J4: VOLTAGE | L4: MODEL | M4: Typ | N4: MAX | O4: VOLTAGE | Q4: MODEL | R4: Typ | S4: MAX | T4: VOLTAGE
C5: RX8901CE | D5: 240 | E5: 1500 | G5: RX4901CE | H5: 240 | I5: 1500 | L5: RX-4571LC | M5: 320 | N5: 950
C6: RA8000CE | D6: 300 | E6: 1700 | G6: RA4000CE | H6: 300 | I6: 1700 | L6: RX-4571-NB | M6: 320 | N6: 950 | Q6: RTC-72423 | R6: 900 | S6: 5000 | T6: 2.0V
C7: RX8111CE | D7: 100 | E7: 450 | G7: RX4111CE | H7: 100 | I7: 450 | L7: RX-4571SA | M7: 320 | N7: 950 | Q7: RTC-7301SF | R7: 600 | S7: 1000
C8: RX-8803LC | D8: 750 | E8: 2100 | G8: RA4803SA | H8: 750 | I8: 2100 | L8: RTC-4573SB | M8: 500 | N8: 1000 | Q8: RTC-72421 | R8: 900 | S8: 5000 | T8: 2.0V
C9: RX-8803SA | D9: 750 | E9: 2100 | G9: RX-4803LC | H9: 750 | I9: 2100 | L9: X-4574LC | M9: 350 | N9: 700 | Q9: RTC-6591 | R9: 500 | S9: 1000
C10: RA8803SA | D10: 750 | E10: 2100 | G10: RX-4803SA | H10: 750 | I10: 2100 | L10: RA-4574SA | M10: 500 | N10: 1000 | Q10: RTC-6583 | R10: 500 | S10: 1000
C11: RA8804CE | D11: 350 | E11: 1500 | G11: RA-4565SA | H11: 500 | I11: 1000 | L11: RTC-4574NB | M11: 500 | N11: 1000 | Q11: RTC-6581 | R11: 500 | S11: 1000
C12: RX8804CE | D12: 350 | E12: 1500 | G12: RX-4035LC | H12: 400 | I12: 1200 | L12: RTC-4574JE | M12: 500 | N12: 1000 | Q12: RTC-65271 | R12: 500 | S12: 1000
C13: RX8130CE | D13: 300 | E13: 500 | G13: RX-4035SA | H13: 350 | I13: 1200 | L13: RTC-4574SA | M13: 500 | N13: 1000 | Q13: RTC-64613 | S13: 2000 | T13: 2.0V
C14: RX8900CE | D14: 700 | E14: 1400 | G14: RX-4045NB | H14: 480 | I14: 1200 | L14: RX-4574SG | M14: 1700 | N14: 4000 | Q14: RTC-64611 | S14: 2000
C15: RA8900CE | D15: 700 | E15: 1400 | G15: RX-4045SA | H15: 480 | I15: 1200 | L15: RX-4575LC | M15: 350 | N15: 700 | Q15: RTC-63423 | S15: 1800
C16: RX8900SA | D16: 700 | E16: 1400 | G16: RX6110SA A/B | H16: 130 | I16: 250 | L16: RX-4702CF | M16: 500 | N16: 1000 | Q16: RTC-63421 | S16: 1800
C17: RX8010SJ | D17: 160 | E17: 320 | G17: RX-4801SA | H17: 800 | I17: 2100 | L17: RTC-4563SB | M17: 900 | N17: 1500 | Q17: RTC-63421M | S17: 1800
C18: RX6110SA A/B | D18: 130 | E18: 250 | G18: RX-4801JE | H18: 800 | I18: 2100 | L18: RTC-4513 | M18: 2500 | N18: 5000 | Q18: RTC-62423 | S18: 1800 | T18: 2.0V
C19: RX-8025NB | D19: 480 | E19: 1200 | G19: RX-4581NB | H19: 400 | I19: 800 | L19: RTC-4701NB | M19: 500 | N19: 1000 | Q19: RTC-62421 | S19: 1800 | T19: 2.0V
C20: RX-8025SA | D20: 480 | E20: 1200 | G20: RTC-4543SA | H20: 1000 | I20: 2000 | J20: 5.0V | L20: RTC-4701JE | M20: 500 | N20: 1000 | Q20: RTC-58323 | S20: 20000
C21: RX-8035LC | D21: 400 | E21: 1200 | G21: RTC-4553 | H21: 1000 | I21: 3000 | Q21: RTC-58321 | S21: 20000
C22: RX-8035SA | D22: 350 | E22: 1200 | G22: RTC-9701JE | H22: 800 | I22: 1000 | Q22: RTC-6593 | R22: 500 | S22: 1000
C23: RX-8564LC | D23: 275 | E23: 700 | G23: RX-5412SF | H23: 500 | I23: 1000 | Q23: RTC-7301DG | R23: 600 | S23: 1000
C24: RTC-8564NB | D24: 275 | E24: 700 | G24: RTC-4543SB | H24: 1000 | I24: 2000
C25: RTC-8564JE | D25: 275 | E25: 700
C26: RX-8571LC | D26: 220 | E26: 400
C27: RX-8571NB | D27: 200 | E27: 400
C28: RX-8571SA | D28: 200 | E28: 400
C29: RX-8731LC | D29: 350 | E29: 1400
C30: RA-8565SA | D30: 650 | E30: 1000
C31: RX-8801SA | D31: 800 | E31: 2100
C32: RX-8801JE | D32: 800 | E32: 2100
C33: RA-8581SA | D33: 450 | E33: 800
C34: RX-8581NB | D34: 450 | E34: 800
C35: RX-8581JE | D35: 450 | E35: 800
C36: RX-8581SA | D36: 450 | E36: 800
C37: RTC-8593SB | D37: 1200 | E37: 10000
C38: RTC-8593SA | D38: 1200 | E38: 10000
C39: RTC-8583 | D39: 3500 | E39: 15000
C40: RTC-8563SA | D40: 300 | E40: 750
C41: RTC-8563JE | D41: 300 | E41: 750
C42: RX-8564CF | D42: 275 | E42: 700

Sheet Ohm's Law
B2: The voltage, current consumption and resistance,each values are calculatedaccording to Ohm's law. Please input to yellow cells only.
B3: Input | C3: Voltage (V) | E3: 0.4 | F3: 3.3
C4: Resistance (W) | D4: 1000 | F4: 314159265.4
C5: Current (A) | D5: 0.002 | E5: 0.003
D6: ¯ | E6: ¯ | F6: ¯
B7: Results | D7: Voltage (V) | E7: Resistance (W) | F7: Current (A) | G7: Unit
D8: =H12 -> 10504.22624 | E8: =H13 -> 133.3333333 | F8: =H8 -> 1.050422624e-08 | G8: A | H8: =F3/F4 -> 1.050422624e-08
F9: =H9 -> 1.050422624e-05 | G9: mA | H9: =F8*1000 -> 1.050422624e-05
F10: =H10 -> 0.01050422624 | G10: mA | H10: =F9*1000 -> 0.01050422624
F11: =H11 -> 10.50422624 | G11: nA | H11: =F10*1000 -> 10.50422624
F12: =H12 -> 10504.22624 | G12: pA | H12: =H11*1000 -> 10504.22624
H13: =E3/E5 -> 133.3333333
